Cogmind - Beta 11 X8 @@@ ROGUE MODE // 2021.11.09 @ 20:57:59 Player: Runia Result: Destroyed by as-80984 with Assembled Rifle Performance ------------- Evolutions (0) 0 Regions Visited (2) 400 Robots Destroyed (34) 170 Value Destroyed (560) 560 Prototype IDs (0) 0 Alien Tech Used (0) 0 Bonus (0) 0 TOTAL SCORE: 1130 Bonus ------- None Cogmind --------- Core Integrity 0/250 Matter 185/300 Energy 80/100 System Corruption 0% Temperature Cool (0) Movement Walking (210) Ox1 Location -10/Mines Parts ------- > --- POWER (1) -------- (None) > --- PROPULSION (2) --- Makeshift Leg > --- UTILITY (2) ------ Large Storage Unit Structural Scanner > --- WEAPON (2) ------- Medium Laser Mini Grenade Launcher > --- INVENTORY (15) --- High-capacity Matter Pod (200) Transport Network Coupler Hacking Suite Particle Gun Particle Gun Particle Gun Grenade Launcher Mini Grenade Launcher Mini Grenade Launcher Mini Grenade Launcher Peak State ------------ > --- POWER ------------ Ion Engine > --- PROPULSION ------- Light Treads Light Treads > --- UTILITY ---------- Large Storage Unit Structural Scanner > --- WEAPON ----------- Particle Gun Mini Grenade Launcher > --- INVENTORY -------- Ion Engine Light Treads High-capacity Matter Pod Transport Network Coupler Hacking Suite Medium Laser Medium Laser Particle Gun Particle Gun Particle Gun Grenade Launcher Mini Grenade Launcher Mini Grenade Launcher Mini Grenade Launcher [Rating: 11] Favorites ----------- Power Ion Engine Engine Ion Engine Propulsion Light Treads Treads Light Treads Leg Aluminum Leg Utility Large Storage Unit Device Structural Scanner Storage Large Storage Unit Weapon Medium Laser Energy Gun Medium Laser Ballistic Gun Light Assault Rifle Launcher Mini Grenade Launcher Build | -11 -10 -10 ------- Run | Scr Mat Min Slots Evolved . | . . . Power . | . . . Propulsion . | . . . Utility . | . . . Weapon . | . . . Parts Attached 24 | 2 14 8 Power 4 | . 3 1 Engine 4 | . 3 1 Core . | . . . Reactor . | . . . Propulsion 7 | 2 3 2 Treads 6 | 2 3 1 Leg 1 | . . 1 Wheel . | . . . Hover . | . . . Flight . | . . . Utility 3 | . 3 . Device 1 | . 1 . Storage 2 | . 2 . Processor . | . . . Hackware . | . . . Protection . | . . . Artifact . | . . . Weapon 10 | . 5 5 Energy Gun 6 | . 3 3 Energy Cannon . | . . . Ballistic Gun 1 | . 1 . Ballistic Cannon . | . . . Launcher 3 | . 1 2 Special Weapon . | . . . Impact Weapon . | . . . Slashing Weapon . | . . . Piercing Weapon . | . . . Special Melee Weapon . | . . . Unidentified Prototypes . | . . . Parts Lost 7 | . . 7 Power 2 | . . 2 Propulsion 3 | . . 3 Utility . | . . . Weapon 2 | . . 2 Highest Loss Streak 7 | . . 7 Average Slot Usage (%) 90 | . 91 85 Engine 13 | . 14 9 Treads 25 | . 26 19 Device 8 | . 7 14 Storage 14 | . 14 14 Energy Gun 19 | . 18 23 Ballistic Gun 7 | . 9 . Naked Turns . | . . . Heaviest Build 31 | 10 31 31 Greatest Support 40 | 40 40 40 Greatest Overweight (x) 7 | . 1 7 Average Overweight (x) . | . . . Largest Inventory Capacity 15 | 8 15 15 Average Capacity 14 | 8 14 15 Most Carried 15 | 5 15 14 Average Carried 10 | 3 9 12 Final Capacity 15 | 8 15 15 Final Carried 13 | 2 13 10 Class Distribution -------------------- 100% | Mutant Dominant Class ---------------- Mutant | -10/Materials Mutant | -10/Mines Resources | -11 -10 -10 ----------- Run | Scr Mat Min Matter Collected 440 | 200 240 . Remotely . | . . . Salvage Created 1120 | . 897 223 Parts 70 | . 62 8 Haulers Intercepted 2 | . 2 . Recyclers Shooed 3 | . 1 2 Parts Field Recycled . | . . . Retrieved Matter . | . . . Parts Self-Destructed . | . . . Prevented . | . . . Kills | -11 -10 -10 ------- Run | Scr Mat Min Combat Hostiles Destroyed 26 | . 15 11 Guns 16 | . 15 1 AOE 10 | . . 10 Classes Destroyed 11 | . 8 3 Worker 4 | . 4 . Builder 3 | . 2 1 Tunneler 1 | . . 1 Hauler 2 | . 2 . Recycler 4 | . 2 2 Operator 1 | . 1 . Watcher 3 | . 3 . Swarmer 6 | . 6 . Grunt 9 | . 9 . Demolisher 1 | . . 1 Assembled 10 | . . 10 Best Kill Streak 11 | . 4 11 Combat Bots Only 9 | . 3 9 Max Kills in Single Turn 5 | . 1 5 Gunslinging . | . . . Exploded 4 | . . 4 Melee . | . . . Uniques/NPCs Destroyed . | . . . Combat | -11 -10 -10 -------- Run | Scr Mat Min Damage Taken 1314 | . 503 811 Core 253 | . 104 149 Absorbed by Shields . | . . . Core Remaining (%) 100 | 100 . . Volleys Fired 99 | . 82 17 Largest 2 | . 2 2 Hottest 115 | . 115 115 Shots Fired 176 | . 153 23 Gun 168 | . 152 16 Cannon . | . . . Launcher 8 | . 1 7 Special . | . . . Kinetic 70 | . 70 . Thermal 98 | . 82 16 Explosive 8 | . 1 7 Electromagnetic . | . . . Robot Hit Streak 10 | . 10 8 Robot Miss Streak 5 | . 5 3 Penetration Max . | . . . Secondary Targets 3 | . 2 1 Max Gunslinging Chain 1 | . 1 1 Shots Hit Robots 96 | . 83 13 Core Hits 70 | . 42 28 Critical Kills . | . . . Critical Parts Destroyed . | . . . Critical Strikes 4 | . 4 . Burn 4 | . 4 . Melee Attacks . | . . . Impact . | . . . Slashing . | . . . Piercing . | . . . Sneak Attacks . | . . . Combat Hostiles . | . . . Follow-up Attacks . | . . . Damage Inflicted 1882 | . 942 940 Guns 1074 | . 942 132 Cannons . | . . . Explosions 808 | . . 808 Melee . | . . . Ramming . | . . . Kinetic 337 | . 337 . Thermal 737 | . 605 132 Explosive 808 | . . 808 Electromagnetic . | . . . Impact . | . . . Slashing . | . . . Piercing . | . . . Highest Corruption . | . . . Average Corruption . | . . . Corruption Purged . | . . . Overload Shots . | . . . Overflow Damage 46 | . . 46 Projectiles . | . . . Explosions 46 | . . 46 Melee . | . . . Knockbacks . | . . . Impact . | . . . Kinetic . | . . . Secondary . | . . . Self-Inflicted Damage 83 | . . 83 Shots 2 | . . 2 Rammed . | . . . Targets Rammed . | . . . Kicked . | . . . Crushed . | . . . Highest Temperature 348 | . 348 214 Average Temperature 104 | . 105 101 Received Heat Transfer 183 | . 183 . Effects 5 | . 5 . Energy Bleed 2 | . 2 . Interference 3 | . 3 . Siege Activations . | . . . Robots Corrupted . | . . . Combat Hostiles . | . . . Parts Fried . | . . . Impact Corruptions . | . . . Robots Melted . | . . . Combat Hostiles . | . . . Parts Melted 4 | . 3 1 Heat Transferred 2220 | . 1850 370 Parts Sabotaged . | . . . Parts Stolen . | . . . Parts Stripped . | . . . Power Chain Reactions . | . . . Missiles Intercepted . | . . . Alert | -11 -10 -10 ------- Run | Scr Mat Min Peak Influence 251 | . 251 10 Initial 3 | . . 3 Average 65 | . 79 4 Maximum Alert Level 1 | . 1 . Low Security (%) 97 | 100 97 100 Level 1 2 | . 2 . Level 2 . | . . . Level 3 . | . . . Level 4 . | . . . Level 5 . | . . . High Security . | . . . Max Security . | . . . Squads Dispatched 4 | . 4 . Investigation 3 | . 3 . Extermination . | . . . Reinforcement 1 | . 1 . Assault . | . . . Garrison . | . . . Intercept . | . . . Construction Impeded . | . . . Haulers Reinforced . | . . . Active Scanning Responses . | . . . Cargo Convoy Interrupts . | . . . Stealth | -11 -10 -10 --------- Run | Scr Mat Min Distress Signals 2 | . 2 . Communications Jammed . | . . . Distress Signals . | . . . Times Spotted 43 | . 27 16 Peak Tracking Total 11 | . 4 11 Tactical Retreats 2 | . 1 1 Traps | -11 -10 -10 ------- Run | Scr Mat Min Traps Triggered 1 | . 1 . Indirectly . | . . . Trap Hack Attempts . | . . . Triggered . | . . . Disarmed . | . . . Reprogrammed . | . . . Reused . | . . . Traps Extracted . | . . . Installed . | . . . Triggered . | . . . Machines | -11 -10 -10 ---------- Run | Scr Mat Min Machines Disabled 1 | . 1 . Max in Single Turn 1 | . 1 . Machines Sabotaged . | . . . Garrisons Compromised . | . . . Overloaded Fab Kills . | . . . Hacking | -11 -10 -10 --------- Run | Scr Mat Min Machines Accessed 9 | . 9 . Terminals 6 | . 6 . Fabricators . | . . . Repair Stations 1 | . 1 . Recycling Units 2 | . 2 . Scanalyzers . | . . . Garrison Access . | . . . Total Hacks 25 | . 25 . Successful 13 | . 13 . Failed 12 | . 12 . Catastrophic 2 | . 2 . Database Lockouts . | . . . Manual 8 | . 8 . Terminals 18 | . 18 . Fabricators . | . . . Repair Stations 2 | . 2 . Recycling Units 5 | . 5 . Scanalyzers . | . . . Garrison Access . | . . . Terminal Hacks 6 | . 6 . Branch Access Points 1 | . 1 . Terminal Index 1 | . 1 . Alert Level 2 | . 2 . Unreport Threat 2 | . 2 . Fabricator Hacks . | . . . Repair Station Hacks 2 | . 2 . Scan Component 1 | . 1 . Repair 1 | . 1 . Recycling Unit Hacks 3 | . 3 . Report Inventory 1 | . 1 . Retrieve Matter 1 | . 1 . Retrieve Components 1 | . 1 . Scanalyzer . | . . . Garrison Access Hacks . | . . . Unauthorized Hacks 2 | . 2 . Terminals . | . . . Fabricators . | . . . Repair Stations . | . . . Recycling Units 2 | . 2 . Tunnel 2 | . 2 . Scanalyzers . | . . . Garrison Access . | . . . Data Cores Recovered 1 | . 1 . Used 1 | . 1 . Hacking Detections 7 | . 7 . Full Trace Events . | . . . Feedback Events . | . . . Feedback Blocked . | . . . Robot Schematics Acquired . | . . . Robots Built . | . . . Authchips . | . . . Time . | . . . Total Robot Build Rating . | . . . Part Schematics Acquired . | . . . Parts Built . | . . . Authchips . | . . . Time . | . . . Total Part Build Rating . | . . . Parts Repaired 1 | . 1 . Time 26 | . 26 . Parts Recycled . | . . . Recycled Matter . | . . . Retrieved Matter . | . . . Retrieved Components 2 | . 2 . Parts Scanalyzed . | . . . Part Schematics Acquired . | . . . Parts Damaged . | . . . Bothacking | -11 -10 -10 ------------ Run | Scr Mat Min Used RIF Installer . | . . . Robots Hacked . | . . . Non-combat . | . . . Combat . | . . . Robot Hacks Applied . | . . . Relay Couplers Released . | . . . Fabnet Peak Effective % . | . . . Robots Rewired . | . . . Allies Hacked . | . . . Hacks Repelled . | . . . Allies | -11 -10 -10 -------- Run | Scr Mat Min Total Allies 2 | . . 2 Largest Group 2 | . . 2 Highest-Rated Group 47 | . . 47 Highest-Rated Ally 31 | . . 31 Total Orders . | . . . Ally Attacks 4 | . . 4 Total Damage 41 | . . 41 Kills 1 | . . 1 Allies Corrupted . | . . . Allies Melted . | . . . Intel | -11 -10 -10 ------- Run | Scr Mat Min Robot Analysis Total . | . . . Derelict Logs Recovered . | . . . Drone Launches . | . . . Drone Recoveries . | . . . Exploration | -11 -10 -10 ------------- Run | Scr Mat Min Turns Passed 1645 | 5 1353 287 Spaces Moved 756 | 1 635 120 Core 14 | . . 14 Treads 742 | 1 635 106 Legs . | . . . Wheels . | . . . Hover . | . . . Flight . | . . . Fastest Speed 160 | 160 160 160 Average Speed 168 | 160 165 188 Slowest Speed 400 | 160 240 400 Overloaded Moves . | . . . Propulsion Burnouts . | . . . Robots Hopped . | . . . Cave-ins Triggered . | . . . Exploration Rate (%) 43 | 2 94 35 Regions Visited 2 Branch Regions 1 Pre-discovered Areas 2 | . 2 . Known Exits Taken 1 | . 1 . Unknown Exits Taken 1 | 1 . . Scrap Searched . | . . . Spaces Dug 11 | . 11 . Terrain Destroyed 68 | . 11 57 Melee . | . . . Projectile . | . . . AOE 68 | . 11 57 Terrain Rammed . | . . . Walls Destroyed . | . . . Machines Disabled . | . . . Actions | -11 -10 -10 --------- Run | Scr Mat Min Total 966 | 6 803 157 Wait 50 | . 39 11 Move 754 | . 634 120 Hop . | . . . Pick Up 21 | . 20 1 Fast Attach 3 | . 2 1 Attach 10 | 2 4 4 Detach . | . . . Swap 11 | . 8 3 Drop 18 | 4 14 . Fire 99 | . 82 17 Melee . | . . . Ram . | . . . Kick . | . . . Crush . | . . . Escape Stasis . | . . . Rewire . | . . . Trap . | . . . Miscellaneous . | . . . Route ------- -11/Scrapyard -10/Materials (discovered 4 exits: [*Mat x3] / *Min) -10/Mines (discovered 1 exit: [*Mat]) History --------- Turn | Location | Event 6 | -11/Scrapyard | Discovered new exit (range 0) 6 | -11/Scrapyard | Entered Materials 305 | -10/Materials | Build established: Mutant 437 | -10/Materials | Discovered new exit (range 13) 597 | -10/Materials | Discovered new exit (range 7) 877 | -10/Materials | Identified exit to Mines 902 | -10/Materials | Discovered new exit (range 13) 974 | -10/Materials | Repaired Lgt. Treads 1243 | -10/Materials | Discovered new exit (range 16) 1359 | -10/Materials | Entered Mines 1434 | -10/Mines | Discovered new exit (range 9) 1509 | -10/Mines | Assembled infested the area 1533 | -10/Mines | Core integrity fell below 50% 1560 | -10/Mines | Core integrity fell below 20% 1568 | -10/Mines | Destroyed 9 combat bots 1603 | -10/Mines | Lost 7 parts (2p3n2w) 1646 | -10/Mines | Destroyed by as-80984 with Assembled Rifle Last Messages --------------- 01592_ U-05 Engineer destroyed. 01592_ R-06 Scavenger destroyed. 01595_ The unstable cave ceiling collapses. 01595_ 40 Matter crushed. 01596_ The unstable cave ceiling collapses. 01617_ U-05 Engineer builds a Wall. 01618_ The unstable cave ceiling collapses. 01620_ U-05 Engineer lays Concrete. 01622_ The unstable cave ceiling collapses. 01622_ U-05 Engineer builds a Wall. 01626_ U-05 Engineer lays Concrete. 01627_ The unstable cave ceiling collapses. 01627_ U-05 Engineer builds a Wall. 01630_ The unstable cave ceiling collapses. 01630_ U-05 Engineer lays Concrete. 01634_ U-05 Engineer builds a Wall. 01638_ U-05 Engineer lays Concrete. 01644_ U-05 Engineer builds a Wall. 01646_ Acquired Mak. Leg. 01646_ U-05 Engineer lays Concrete. Map ----- +----------------------------------------------------+ | ?????????????????????????????????????????????????? | | ?????????????????????????????????????????????????? | | ?????????????????????????????????????????????????? | | ?????????????????????????????????????????????????? | | ?????????????????????????????????????????????????? | | ?????????????????????????????????????????????????? | | ??????????????????#####??????????????????????????? | | ?????????????????########### ##??????????#####??? | | ????????????????#### ###########?????????#####??? | | ????????????? ## ### ???????? ##??? | | ?????????????? ### ????????? ##??? | | ?????????????????? # ## # ## ????????? ##??? | | ?????????????????? ? ## # # # ????????? ##??? | | ??????????????????"" # ### ## # ?????? ## ####? | | ????????????# ??""" # ## ##??????### ##### | | ????????????## """ ###?????## ### | | ????????????### ####????## | | ?????????????#### #### ###????## ??? | | ??????????????### ##### # # ####??## ???? | | ???????????????## ???### ### ### #### ##???? | | ??????????????????????## u##%######## ##???? | | ??????????????????????### # u *%=% %" ##???? | | ????????????????????#### ######## ###???? | | ???????????????## ?##### # !# #### ###???? | | ??????????????### ## ###### ####??? | | ?????????????### % =@ % ########## ####?? | | ?????????????## ! ########## ##### | | ?????????????## ############## #### | | ??????????? a ############ ## | | ??????????? #### #########??## # | | ???????????###########?????????## ############ # | | ?????????????? #####???????????## ############# # | | ???????????????????????????????## ##?????????##### | | ???????????????????????????????## ###?????????#### | | ??????????????????????????????### #####??????????? | | ???????????????????????????###### ########??????? | | ???????????????????????????##### ######??????? | | ???????????????????????????## ##??????? | | ???????????????????????????## ## < ###??????? | | ???????????????????????????## ### ####??????? | | ?????????????????????######## #### ###???????? | | #############????????######## #### ###???????? | | #############????????## ### #####?????? | | ##????????## ### #####????? | | ############ ##### #### ###????? | | !!!! ############ ##### #### ##????? | | !!! ##?### ## ##????? | | !!! ##?### #####????? | | !!! ################?### #####????? | | ################### ##???????? | +----------------------------------------------------+ Best States ------------- Heat Dissipation 25 Energy Generation 10 Energy Capacity 250 Matter Stores 300 Matter Capacity 300 Sight Range 16 Terrain Scan Density 10 Evasion (%) 40 Recoil Reduction 2 Item Schematics ----------------- None Robot Schematics ------------------ None Fabricated ------------ Nothing Alien Tech Used ----------------- None Achievements -------------- None Challenges ------------ None Game ------ Seed HugeAutogunRedirector Manual? 0 Play Time 00:11:37 Cumulative 456.1 hours Start 2021.11.09 @ 20:47:25 End 2021.11.09 @ 20:57:59 Sessions 1 Manual Loads 0 Difficulty Rogue Special Mode None Game No. 458 Rogue 458 Adventurer 0 Explorer 0 Win Type - Total 9 Types 8/0/0/1/0/0/0/0/0 Lore% 80 Gallery% 93 Achievement% 70 Wizard Run 0 Options --------- ASCII 0 Keyboard 0 Movement Mouse Keybinds 1 Fullscreen 2 Font 24/Smallcaps Map View 76x50 Tactical HUD 1 Map Filters NONE Filters NONE Steam 1 RUN: 785b78ee-4f13-49d4-9980-ee010a251f40